fUST/lending_fUST_20250221
["ID","MTS","AMOUNT","RATE_DAILY","PERIOD"]
[353860973,1740099042478,-500.0,0.00013863,2]
[353860975,1740099042487,-1248.90148633,0.00013927,2]
[353860977,1740099042496,-330.96217767,0.00013945,2]
[353860979,1740099042505,-528.42,0.00013945,2]
[353860980,1740099042516,-500.0,0.00013945,2]
[353860981,1740099042526,-500.0,0.00013945,2]
[353860982,1740099042536,-591.42,0.00013945,2]
[353860983,1740099042546,-500.0,0.00013945,2]
[353860984,1740099042555,-500.0,0.00013945,2]
[353860985,1740099042564,-500.0,0.00013945,2]
[353860986,1740099042573,-500.0,0.00013945,2]
[353860987,1740099042583,-1606.58,0.00013945,2]
[353860988,1740099042592,-500.0,0.00013945,2]
[353860989,1740099042602,-500.0,0.00013945,2]
[353860990,1740099042612,-500.0,0.00013945,2]
[353860991,1740099042622,-500.0,0.00013945,2]
[353860993,1740099042631,-721.55,0.00013945,2]
[353860994,1740099042640,-500.0,0.00013945,2]
[353860995,1740099042650,-500.0,0.00013945,2]
[353860996,1740099042659,-834.0,0.00013945,2]
[353860997,1740099042668,-660.44,0.00013945,2]
[353860998,1740099042678,-947.07,0.00013945,2]
[353860999,1740099042687,-500.0,0.00013945,2]
[353861000,1740099042696,-500.0,0.00013945,2]
[353861001,1740099042705,-500.0,0.00013945,2]
[353861002,1740099042715,-1000.0,0.00013945,2]
[353861003,1740099042724,-609.15,0.00013945,2]
[353861004,1740099042733,-500.0,0.00013945,2]
[353861005,1740099042743,-1114.79,0.00013945,2]
[353861006,1740099042752,-1228.62,0.00013945,2]
[353861007,1740099042761,-500.0,0.00013945,2]
[353861008,1740099042771,-621.37,0.00013945,2]
[353861009,1740099042780,-500.0,0.00013945,2]
[353861010,1740099042789,-758.38,0.00013945,2]
[353861012,1740099042799,-613.19,0.00013945,2]
[353861014,1740099042808,-632.61,0.00013945,2]
[353861016,1740099042817,-572.23,0.00013945,2]
[353861018,1740099042827,-500.0,0.00013945,2]
[353861020,1740099042836,-500.0,0.00013945,2]
[353861021,1740099042845,-1175.39,0.00013945,2]
[353861023,1740099042855,-865.49,0.00013945,2]
[353861024,1740099042864,-500.0,0.00013945,2]
[353861025,1740099042873,-500.0,0.00013945,2]
[353861026,1740099042883,-774.91,0.00013945,2]
[353861027,1740099042892,-564.81,0.00013945,2]
[353861028,1740099042901,-500.0,0.00013945,2]
[353861029,1740099042911,-500.0,0.00013945,2]
[353861030,1740099042920,-500.0,0.00013945,2]
[353861031,1740099042930,-500.0,0.00013945,2]
[353861032,1740099042939,-500.0,0.00013945,2]
[353861033,1740099042948,-500.0,0.00013945,2]
[353861034,1740099042957,-500.0,0.00013945,2]
[353861035,1740099042966,-500.0,0.00013945,2]
[353861036,1740099042976,-2172.75,0.00013945,2]
[353861037,1740099042984,-2112.09,0.00013945,2]
[353861038,1740099042994,-500.0,0.00013945,2]
[353861039,1740099043004,-589.91,0.00013945,2]
[353861040,1740099043014,-500.0,0.00013945,2]
[353861041,1740099043023,-528.95,0.00013945,2]
[353861042,1740099043033,-1090.79,0.00013945,2]
[353861043,1740099043042,-2970.58,0.00013945,2]
[353861044,1740099043051,-7420.64,0.00013945,2]
[353861045,1740099043061,-36587.69,0.00013945,2]
[353861046,1740099043070,-500.0,0.00013945,2]
[353861047,1740099043080,-1427.22,0.00013945,2]
[353861048,1740099043089,-1803.93,0.00013945,2]
[353861049,1740099043098,-13094.89,0.00013945,2]
[353861050,1740099043108,-1128.54,0.00013945,2]
[353861051,1740099043117,-3325.92,0.00013945,2]
[353861052,1740099043127,-1290.8,0.00013945,2]
[353861053,1740099043136,-500.0,0.00013945,2]
[353861054,1740099043145,-500.0,0.00013945,2]
[353861055,1740099043155,-1123.55,0.00013945,2]
[353861056,1740099043164,-500.0,0.00013945,2]
[353861057,1740099043174,-727.74,0.00013945,2]
[353861058,1740099043183,-2394.48,0.00013945,2]
[353861059,1740099043192,-883.8,0.00013945,2]
[353861060,1740099043202,-1457.41,0.00013945,2]
[353861061,1740099043211,-3211.81,0.00013945,2]
[353861062,1740099043220,-500.0,0.00013945,2]
[353861063,1740099043232,-6337.6,0.00013945,2]
[353861064,1740099043243,-531.95,0.00013945,2]
[353861065,1740099043252,-1198.37,0.00013945,2]
[353861066,1740099043261,-2201.57,0.00013945,2]
[353861067,1740099043271,-3441.83,0.00013945,2]
[353861068,1740099043281,-584.09,0.00013945,2]
[353861069,1740099043290,-682.12,0.00013945,2]
[353861070,1740099043299,-1912.84,0.00013945,2]
[353861071,1740099043309,-500.0,0.00013945,2]
[353861072,1740099043319,-855.35,0.00013945,2]
[353861073,1740099043328,-657.23,0.00013945,2]
[353861074,1740099043337,-1282.81,0.00013945,2]
[353861075,1740099043346,-537.23,0.00013945,2]
[353861076,1740099043355,-500.0,0.00013945,2]
[353861077,1740099043364,-2073.86,0.00013945,2]
[353861078,1740099043373,-500.0,0.00013945,2]
[353861079,1740099043383,-2400.28,0.00013945,2]
[353861080,1740099043392,-1084.12,0.00013945,2]
[353861081,1740099043401,-2528.55,0.00013945,2]
[353861082,1740099043410,-500.0,0.00013945,2]
[353861083,1740099043420,-2085.88,0.00013945,2]
[353861084,1740099043429,-500.0,0.00013945,2]
[353861085,1740099043439,-5873.51,0.00013945,2]
[353861086,1740099043448,-550.36,0.00013945,2]
[353861087,1740099043458,-500.0,0.00013945,2]
[353861088,1740099043467,-500.0,0.00013945,2]
[353861089,1740099043476,-500.0,0.00013945,2]
[353861090,1740099043486,-500.0,0.00013945,2]
[353861091,1740099043495,-755.6,0.00013945,2]
[353861092,1740099043505,-500.0,0.00013945,2]
[353861093,1740099043514,-500.0,0.00013945,2]
[353861094,1740099043523,-500.0,0.00013945,2]
[353861095,1740099043533,-1871.42,0.00013945,2]
[353861096,1740099043543,-18104.48,0.00013945,2]
[353861097,1740099043553,-242.45975678,0.00013945,2]
[353861098,1740099043562,-873.49,0.00013945,2]
[353861099,1740099043572,-500.0,0.00013945,2]
[353861100,1740099043581,-500.0,0.00013945,2]
[353861101,1740099043591,-355.207113,0.00014,2]
[353861102,1740099043601,-3000.0,0.00014008,2]
[353861103,1740099043610,-528.42,0.00014027,2]
[353861104,1740099043625,-500.0,0.00014027,2]
[353861105,1740099043635,-500.0,0.00014027,2]
[353861106,1740099043645,-591.42,0.00014027,2]
[353861107,1740099043655,-500.0,0.00014027,2]
[353861108,1740099043665,-500.0,0.00014027,2]
[353861109,1740099043674,-500.0,0.00014027,2]
[353861110,1740099043684,-500.0,0.00014027,2]
[353861111,1740099043693,-1606.58,0.00014027,2]
[353861112,1740099043702,-500.0,0.00014027,2]
[353861113,1740099043712,-500.0,0.00014027,2]
[353861114,1740099043721,-500.0,0.00014027,2]
[353861115,1740099043731,-500.0,0.00014027,2]
[353861116,1740099043740,-721.55,0.00014027,2]
[353861117,1740099043749,-208.89385453,0.00014027,2]
[353861118,1740099043759,-500.0,0.00014027,2]
[353861119,1740099043771,-834.0,0.00014027,2]
[353861120,1740099043781,-660.44,0.00014027,2]
[353861121,1740099043791,-947.07,0.00014027,2]
[353861122,1740099043800,-500.0,0.00014027,2]
[353861123,1740099043810,-500.0,0.00014027,2]
[353861124,1740099043819,-500.0,0.00014027,2]
[353861125,1740099043828,-1000.0,0.00014027,2]
[353861126,1740099043838,-609.15,0.00014027,2]
[353861127,1740099043852,-500.0,0.00014027,2]
[353861128,1740099043861,-1114.79,0.00014027,2]
[353861129,1740099043871,-1228.62,0.00014027,2]
[353861130,1740099043880,-500.0,0.00014027,2]
[353861131,1740099043892,-621.37,0.00014027,2]
[353861132,1740099043903,-500.0,0.00014027,2]
[353861133,1740099043917,-758.38,0.00014027,2]
[353861134,1740099043926,-613.19,0.00014027,2]
[353861135,1740099043936,-632.61,0.00014027,2]
[353861136,1740099043945,-572.23,0.00014027,2]
[353861137,1740099043954,-500.0,0.00014027,2]
[353861138,1740099043964,-500.0,0.00014027,2]
[353861139,1740099043973,-1175.39,0.00014027,2]
[353861140,1740099043983,-865.49,0.00014027,2]
[353861141,1740099043992,-500.0,0.00014027,2]
[353861142,1740099044001,-500.0,0.00014027,2]
[353861143,1740099044104,-774.91,0.00014027,2]
[353861144,1740099044114,-564.81,0.00014027,2]
[353861145,1740099044124,-500.0,0.00014027,2]
[353861146,1740099044133,-500.0,0.00014027,2]
[353861147,1740099044143,-500.0,0.00014027,2]
[353861148,1740099044152,-500.0,0.00014027,2]
[353861149,1740099044161,-500.0,0.00014027,2]
[353861150,1740099044172,-500.0,0.00014027,2]
[353861151,1740099044182,-429.67719466,0.00014027,2]
[353861152,1740099044191,-500.0,0.00014027,2]
[353861153,1740099044200,-2172.75,0.00014027,2]
[353861154,1740099044210,-2112.09,0.00014027,2]
[353861155,1740099044219,-500.0,0.00014027,2]
[353861156,1740099044234,-589.91,0.00014027,2]
[353861157,1740099044244,-500.0,0.00014027,2]
[353861158,1740099044253,-528.95,0.00014027,2]
[353861159,1740099044263,-1090.79,0.00014027,2]
[353861160,1740099044272,-2970.58,0.00014027,2]
[353861161,1740099044281,-7420.64,0.00014027,2]
[353861162,1740099044290,-36587.69,0.00014027,2]
[353861163,1740099044299,-500.0,0.00014027,2]
[353861164,1740099044310,-1427.22,0.00014027,2]
[353861165,1740099044319,-1803.93,0.00014027,2]
[353861166,1740099044329,-13094.89,0.00014027,2]
[353861167,1740099044341,-1128.54,0.00014027,2]
[353861168,1740099044350,-3325.92,0.00014027,2]
[353861169,1740099044360,-1290.8,0.00014027,2]
[353861170,1740099044370,-500.0,0.00014027,2]
[353861171,1740099044380,-500.0,0.00014027,2]
[353861172,1740099044390,-1123.55,0.00014027,2]
[353861173,1740099044400,-192.65698737,0.00014027,2]
[353861174,1740099044410,-727.74,0.00014027,2]
[353861175,1740099044420,-2394.48,0.00014027,2]
[353861176,1740099044429,-883.8,0.00014027,2]
[353861177,1740099044438,-1457.41,0.00014027,2]
[353861178,1740099044448,-3211.81,0.00014027,2]
[353861179,1740099044458,-500.0,0.00014027,2]
[353861180,1740099044467,-6337.6,0.00014027,2]
[353861181,1740099044477,-531.95,0.00014027,2]
[353861182,1740099044487,-1198.37,0.00014027,2]
[353861183,1740099044497,-2201.57,0.00014027,2]
[353861184,1740099044507,-3441.83,0.00014027,2]
[353861185,1740099044517,-584.09,0.00014027,2]
[353861186,1740099044527,-682.12,0.00014027,2]
[353861187,1740099044537,-1912.84,0.00014027,2]
[353861188,1740099044546,-500.0,0.00014027,2]
[353861189,1740099044556,-855.35,0.00014027,2]
[353861190,1740099044566,-657.23,0.00014027,2]
[353861191,1740099044575,-1282.81,0.00014027,2]
[353861192,1740099044593,-537.23,0.00014027,2]
[353861193,1740099044603,-500.0,0.00014027,2]
[353861194,1740099044613,-2073.86,0.00014027,2]
[353861195,1740099044623,-500.0,0.00014027,2]
[353861196,1740099044633,-2400.28,0.00014027,2]
[353861197,1740099044643,-1084.12,0.00014027,2]
[353861198,1740099044652,-2528.55,0.00014027,2]
[353861199,1740099044661,-619.18273082,0.00014027,2]
[353861200,1740099044671,-2085.88,0.00014027,2]
[353861201,1740099044681,-500.0,0.00014027,2]
[353861202,1740099044691,-5873.51,0.00014027,2]
[353861203,1740099044701,-550.36,0.00014027,2]
[353861204,1740099044710,-500.0,0.00014027,2]
[353861205,1740099044720,-500.0,0.00014027,2]
[353861206,1740099044730,-500.0,0.00014027,2]
[353861207,1740099044739,-755.6,0.00014027,2]
[353861208,1740099044750,-500.0,0.00014027,2]
[353861209,1740099044760,-500.0,0.00014027,2]
[353861210,1740099044770,-500.0,0.00014027,2]
[353861211,1740099044780,-1871.42,0.00014027,2]
[353861212,1740099044790,-18104.48,0.00014027,2]
[353861213,1740099044800,-873.49,0.00014027,2]
[353861214,1740099044810,-300.0,0.000141,5]
[353861215,1740099044820,-354.1549357,0.000141,2]
[353861216,1740099044829,-355.207113,0.000141,2]
[353861217,1740099044841,-355.207113,0.000141,2]
[353861218,1740099044851,-154.7234452,0.000141,2]
[353861219,1740099044861,-355.207113,0.000141,2]
[353861220,1740099044871,-355.207113,0.000141,2]
[353861221,1740099044881,-355.207113,0.000141,2]
[353861222,1740099044891,-528.42,0.00014109,2]
[353861223,1740099044901,-500.0,0.00014109,2]
[353861224,1740099044912,-500.0,0.00014109,2]
[353861225,1740099044922,-591.42,0.00014109,2]
[353861226,1740099044932,-500.0,0.00014109,2]
[353861227,1740099044942,-500.0,0.00014109,2]
[353861228,1740099044952,-500.0,0.00014109,2]
[353861229,1740099044961,-500.0,0.00014109,2]
[353861230,1740099044970,-1606.58,0.00014109,2]
[353861231,1740099044981,-500.0,0.00014109,2]
[353861232,1740099044991,-500.0,0.00014109,2]
[353861233,1740099045001,-500.0,0.00014109,2]
[353861234,1740099045010,-500.0,0.00014109,2]
[353861235,1740099045020,-721.55,0.00014109,2]
[353861236,1740099045031,-500.0,0.00014109,2]
[353861237,1740099045041,-834.0,0.00014109,2]
[353861238,1740099045050,-660.44,0.00014109,2]
[353861239,1740099045060,-947.07,0.00014109,2]
[353861240,1740099045069,-500.0,0.00014109,2]
[353861241,1740099045078,-500.0,0.00014109,2]
[353861242,1740099045089,-500.0,0.00014109,2]
[353861243,1740099045099,-1000.0,0.00014109,2]
[353861244,1740099045111,-609.15,0.00014109,2]
[353861245,1740099045120,-500.0,0.00014109,2]
[353861246,1740099045129,-1114.79,0.00014109,2]
[353861247,1740099045139,-1228.62,0.00014109,2]
[353861248,1740099045159,-500.0,0.00014109,2]
[353861249,1740099045171,-621.37,0.00014109,2]
[353861250,1740099045182,-500.0,0.00014109,2]
[353861252,1740099045193,-758.38,0.00014109,2]
[353861253,1740099045202,-613.19,0.00014109,2]
[353861254,1740099045212,-632.61,0.00014109,2]
[353861255,1740099045222,-572.23,0.00014109,2]
[353861256,1740099045234,-500.0,0.00014109,2]
[353861257,1740099045244,-500.0,0.00014109,2]
[353861258,1740099045254,-1175.39,0.00014109,2]
[353861259,1740099045263,-865.49,0.00014109,2]
[353861260,1740099045275,-500.0,0.00014109,2]
[353861261,1740099045284,-500.0,0.00014109,2]
[353861262,1740099045294,-774.91,0.00014109,2]
[353861263,1740099045303,-564.81,0.00014109,2]
[353861266,1740099045315,-500.0,0.00014109,2]
[353861268,1740099045325,-500.0,0.00014109,2]
[353861269,1740099045335,-500.0,0.00014109,2]
[353861270,1740099045346,-500.0,0.00014109,2]
[353861271,1740099045356,-500.0,0.00014109,2]
[353861272,1740099045366,-500.0,0.00014109,2]
[353861273,1740099045376,-500.0,0.00014109,2]
[353861274,1740099045386,-2172.75,0.00014109,2]
[353861275,1740099045396,-2112.09,0.00014109,2]
[353861276,1740099045406,-500.0,0.00014109,2]
[353861277,1740099045416,-589.91,0.00014109,2]
[353861278,1740099045426,-500.0,0.00014109,2]
[353861279,1740099045436,-528.95,0.00014109,2]
[353861280,1740099045445,-1090.79,0.00014109,2]
[353861281,1740099045455,-2970.58,0.00014109,2]
[353861282,1740099045464,-7420.64,0.00014109,2]
[353861283,1740099045474,-36587.69,0.00014109,2]
[353861284,1740099045483,-500.0,0.00014109,2]
[353861285,1740099045493,-1427.22,0.00014109,2]
[353861286,1740099045502,-1803.93,0.00014109,2]
[353861287,1740099045512,-13094.89,0.00014109,2]
[353861288,1740099045522,-1128.54,0.00014109,2]
[353861289,1740099045532,-3325.92,0.00014109,2]
[353861290,1740099045542,-1290.8,0.00014109,2]
[353861291,1740099045552,-500.0,0.00014109,2]
[353861292,1740099045562,-500.0,0.00014109,2]
[353861294,1740099045572,-1123.55,0.00014109,2]
[353861296,1740099045582,-727.74,0.00014109,2]
[353861297,1740099045594,-2394.48,0.00014109,2]
[353861298,1740099045604,-883.8,0.00014109,2]
[353861299,1740099045615,-1457.41,0.00014109,2]
[353861300,1740099045625,-3211.81,0.00014109,2]
[353861302,1740099045634,-500.0,0.00014109,2]
[353861304,1740099045644,-6337.6,0.00014109,2]
[353861305,1740099045653,-531.95,0.00014109,2]
[353861306,1740099045663,-1198.37,0.00014109,2]
[353861307,1740099045673,-2201.57,0.00014109,2]
[353861308,1740099045683,-3441.83,0.00014109,2]
[353861309,1740099045693,-584.09,0.00014109,2]
[353861310,1740099045702,-682.12,0.00014109,2]
[353861311,1740099045712,-1912.84,0.00014109,2]
[353861312,1740099045722,-500.0,0.00014109,2]
[353861313,1740099045732,-855.35,0.00014109,2]
[353861314,1740099045742,-657.23,0.00014109,2]
[353861315,1740099045752,-1282.81,0.00014109,2]
[353861316,1740099045763,-537.23,0.00014109,2]
[353861317,1740099045774,-500.0,0.00014109,2]
[353861318,1740099045784,-2073.86,0.00014109,2]
[353861319,1740099045795,-500.0,0.00014109,2]
[353861320,1740099045806,-2400.28,0.00014109,2]
[353861321,1740099045816,-1084.12,0.00014109,2]
[353861322,1740099045826,-2528.55,0.00014109,2]
[353861323,1740099045838,-2085.88,0.00014109,2]
[353861324,1740099045848,-500.0,0.00014109,2]
[353861325,1740099045859,-5873.51,0.00014109,2]
[353861326,1740099045868,-550.36,0.00014109,2]
[353861327,1740099045878,-500.0,0.00014109,2]
[353861328,1740099045888,-500.0,0.00014109,2]
[353861329,1740099045898,-500.0,0.00014109,2]
[353861330,1740099045908,-755.6,0.00014109,2]
[353861331,1740099045917,-500.0,0.00014109,2]
[353861332,1740099045928,-500.0,0.00014109,2]
[353861333,1740099045938,-500.0,0.00014109,2]
[353861334,1740099045947,-1871.42,0.00014109,2]
[353861335,1740099045958,-18104.48,0.00014109,2]
[353861336,1740099045968,-873.49,0.00014109,2]
[353861337,1740099045977,-600.0,0.00014164,2]
[353861338,1740099045987,-500.0,0.00014173,2]
[353861339,1740099045997,-500.0,0.00014173,2]
[353861340,1740099046007,-500.33894546,0.00014173,2]
[353861341,1740099046016,-500.0,0.00014173,2]
[353861342,1740099046026,-500.0,0.00014173,2]
[353861343,1740099046035,-500.0,0.00014173,2]
[353861344,1740099046045,-500.0,0.00014173,2]
[353861345,1740099046055,-500.0,0.00014173,2]
[353861346,1740099046064,-500.0,0.00014173,2]
[353861347,1740099046074,-500.0,0.00014173,2]
[353861348,1740099046084,-500.67238242,0.00014173,2]
[353861349,1740099046095,-500.0,0.00014173,2]
[353861350,1740099046105,-500.0,0.00014173,2]
[353861351,1740099046115,-500.0,0.00014173,2]
[353861352,1740099046125,-500.0,0.00014173,2]
[353861353,1740099046134,-500.0,0.00014173,2]
[353861354,1740099046143,-156.63025775,0.00014173,2]
[353861355,1740099046153,-500.0,0.00014173,2]
[353861356,1740099046163,-500.0,0.00014173,2]
[353861357,1740099046172,-500.0,0.00014173,2]
[353861358,1740099046182,-500.0,0.00014173,2]
[353861359,1740099046191,-500.0,0.00014173,2]
[353861360,1740099046200,-250.76985661,0.00014173,2]
[353861361,1740099046210,-500.0,0.00014173,2]
[353861362,1740099046220,-500.0,0.00014173,2]
[353861363,1740099046235,-500.0,0.00014173,2]
[353861364,1740099046243,-170.82861777,0.00014173,2]
[353861365,1740099046253,-500.0,0.00014173,2]
[353861366,1740099046263,-2246.54732415,0.00014173,2]
[353861367,1740099046273,-7438.69753278,0.00014183,2]
[353861368,1740099046283,-528.42,0.00014191,2]
[353861369,1740099046377,-500.0,0.00014191,2]
[353861370,1740099046398,-500.0,0.00014191,2]
[353861371,1740099046408,-591.42,0.00014191,2]
[353861372,1740099046418,-500.0,0.00014191,2]
[353861373,1740099046428,-500.0,0.00014191,2]
[353861374,1740099046437,-500.0,0.00014191,2]
[353861375,1740099046447,-500.0,0.00014191,2]
[353861376,1740099046456,-1606.58,0.00014191,2]
[353861377,1740099046465,-500.0,0.00014191,2]
[353861378,1740099046475,-500.0,0.00014191,2]
[353861379,1740099046484,-500.0,0.00014191,2]
[353861380,1740099046493,-500.0,0.00014191,2]
[353861381,1740099046503,-721.55,0.00014191,2]
[353861382,1740099046513,-500.0,0.00014191,2]
[353861383,1740099046523,-834.0,0.00014191,2]
[353861384,1740099046534,-660.44,0.00014191,2]
[353861385,1740099046544,-947.07,0.00014191,2]
[353861386,1740099046555,-500.0,0.00014191,2]
[353861387,1740099046565,-500.0,0.00014191,2]
[353861388,1740099046575,-358.92,0.00014191,2]
[353861389,1740099046584,-609.15,0.00014191,2]
[353861390,1740099046596,-500.0,0.00014191,2]
[353861391,1740099046605,-1114.79,0.00014191,2]
[353861392,1740099046615,-1228.62,0.00014191,2]
[353861393,1740099046624,-500.0,0.00014191,2]
[353861394,1740099046634,-621.37,0.00014191,2]
[353861395,1740099046644,-500.0,0.00014191,2]
[353861396,1740099046655,-758.38,0.00014191,2]
[353861397,1740099046665,-613.19,0.00014191,2]
[353861398,1740099046674,-632.61,0.00014191,2]
[353861399,1740099046685,-572.23,0.00014191,2]
[353861400,1740099046694,-500.0,0.00014191,2]
[353861401,1740099046704,-500.0,0.00014191,2]
[353861402,1740099046714,-1175.39,0.00014191,2]
[353861403,1740099046724,-865.49,0.00014191,2]
[353861404,1740099046733,-500.0,0.00014191,2]
[353861405,1740099046743,-500.0,0.00014191,2]
[353861406,1740099046753,-774.91,0.00014191,2]
[353861407,1740099046763,-564.81,0.00014191,2]
[353861408,1740099046772,-500.0,0.00014191,2]
[353861409,1740099046782,-500.0,0.00014191,2]
[353861410,1740099046792,-500.0,0.00014191,2]
[353861411,1740099046801,-500.0,0.00014191,2]
[353861412,1740099046811,-500.0,0.00014191,2]
[353861413,1740099046820,-500.0,0.00014191,2]
[353861414,1740099046830,-500.0,0.00014191,2]
[353861415,1740099046839,-2172.75,0.00014191,2]
[353861416,1740099046849,-2112.09,0.00014191,2]
[353861417,1740099046859,-500.0,0.00014191,2]
[353861418,1740099046869,-589.91,0.00014191,2]
[353861419,1740099046879,-500.0,0.00014191,2]
[353861420,1740099046888,-528.95,0.00014191,2]
[353861421,1740099046898,-1090.79,0.00014191,2]
[353861422,1740099046907,-2970.58,0.00014191,2]
[353861423,1740099046917,-7420.64,0.00014191,2]
[353861424,1740099046926,-36587.69,0.00014191,2]
[353861425,1740099046936,-500.0,0.00014191,2]
[353861426,1740099046946,-1427.22,0.00014191,2]
[353861427,1740099046956,-1803.93,0.00014191,2]
[353861428,1740099046965,-13094.89,0.00014191,2]
[353861429,1740099046975,-1128.54,0.00014191,2]
[353861430,1740099046984,-3325.92,0.00014191,2]
[353861431,1740099046993,-1290.8,0.00014191,2]
[353861432,1740099047003,-500.0,0.00014191,2]
[353861433,1740099047013,-500.0,0.00014191,2]
[353861434,1740099047023,-1123.55,0.00014191,2]
[353861435,1740099047033,-727.74,0.00014191,2]
[353861436,1740099047043,-2394.48,0.00014191,2]
[353861437,1740099047053,-883.8,0.00014191,2]
[353861438,1740099047062,-1457.41,0.00014191,2]
[353861439,1740099047072,-3211.81,0.00014191,2]
[353861440,1740099047082,-500.0,0.00014191,2]
[353861441,1740099047093,-6337.6,0.00014191,2]
[353861442,1740099047103,-531.95,0.00014191,2]
[353861443,1740099047112,-1198.37,0.00014191,2]
[353861444,1740099047122,-2201.57,0.00014191,2]
[353861445,1740099047131,-3441.83,0.00014191,2]
[353861446,1740099047141,-584.09,0.00014191,2]
[353861447,1740099047150,-682.12,0.00014191,2]
[353861448,1740099047161,-500.0,0.00014191,2]
[353861449,1740099047171,-855.35,0.00014191,2]
[353861450,1740099047180,-1912.84,0.00014191,2]
[353861451,1740099047190,-657.23,0.00014191,2]
[353861452,1740099047200,-1282.81,0.00014191,2]
[353861453,1740099047210,-537.23,0.00014191,2]
[353861454,1740099047219,-500.0,0.00014191,2]
[353861455,1740099047230,-2073.86,0.00014191,2]
[353861456,1740099047242,-220.53,0.00014191,2]
[353861457,1740099047251,-2400.28,0.00014191,2]
[353861458,1740099047261,-1084.12,0.00014191,2]
[353861459,1740099047270,-2528.55,0.00014191,2]
[353861460,1740099047282,-2085.88,0.00014191,2]
[353861461,1740099047291,-500.0,0.00014191,2]
[353861462,1740099047300,-5873.51,0.00014191,2]
[353861463,1740099047311,-550.36,0.00014191,2]
[353861464,1740099047321,-500.0,0.00014191,2]
[353861465,1740099047330,-500.0,0.00014191,2]
[353861466,1740099047341,-500.0,0.00014191,2]
[353861467,1740099047351,-755.6,0.00014191,2]
[353861468,1740099047360,-500.0,0.00014191,2]
[353861469,1740099047369,-500.0,0.00014191,2]
[353861470,1740099047378,-500.0,0.00014191,2]
[353861471,1740099047387,-1871.42,0.00014191,2]
[353861472,1740099047396,-18104.48,0.00014191,2]
[353861473,1740099047406,-873.49,0.00014191,2]
[353861474,1740099047415,-151.0,0.000142,2]
[353861475,1740099047424,-151.0,0.000142,2]
[353861476,1740099047434,-160.0,0.00014241,3]
[353861477,1740099047443,-38637.26736222,0.00014256,2]
[353861478,1740099047452,-528.42,0.00014273,2]
[353861479,1740099047461,-500.0,0.00014273,2]
[353861480,1740099047470,-500.0,0.00014273,2]
[353861481,1740099047479,-591.42,0.00014273,2]
[353861482,1740099047489,-500.0,0.00014273,2]
[353861483,1740099047498,-500.0,0.00014273,2]
[353861484,1740099047507,-500.0,0.00014273,2]
[353861485,1740099047517,-500.0,0.00014273,2]
[353861486,1740099047527,-1606.58,0.00014273,2]
[353861487,1740099047536,-500.0,0.00014273,2]
[353861488,1740099047546,-500.0,0.00014273,2]
[353861489,1740099047555,-500.0,0.00014273,2]
[353861490,1740099047565,-500.0,0.00014273,2]